bitfinex/quotes_BTCUSD_20241120
["timestamp","ask_amount","ask_price","bid_price","bid_amount"]
[1732112402701,0.35311873,94228.0,94201.0,0.09554]
[1732112402964,0.35311873,94228.0,94199.0,0.11711512]
[1732112402965,0.35311873,94228.0,94224.0,0.095516]
[1732112403218,0.39538568,94228.0,94226.0,0.095514]
[1732112403698,0.35038568,94228.0,94224.0,0.095516]
[1732112403912,0.24327056,94228.0,94227.0,0.095514]
[1732112404368,0.0008569,94243.0,94236.0,0.095503]
[1732112404620,0.10711512,94242.0,94232.0,0.095508]
[1732112405101,0.10711512,94242.0,94231.0,0.095508]
[1732112405102,0.212221,94241.0,94231.0,0.095508]
[1732112405327,0.106119,94234.0,94228.0,0.095512]
[1732112405548,0.12103222,94228.0,94213.0,0.095527]
[1732112405744,0.10711512,94227.0,94200.0,0.0791]
[1732112405948,0.10711512,94227.0,94202.0,0.095539]
[1732112406134,0.106131,94223.0,94217.0,0.095523]
[1732112406367,0.10711512,94227.0,94217.0,0.095523]
[1732112406368,0.10711512,94227.0,94219.0,0.095521]
[1732112406572,0.10613,94224.0,94219.0,0.095521]
[1732112406770,0.10613,94224.0,94217.0,0.095523]
[1732112406771,0.10711512,94226.0,94217.0,0.095523]
[1732112406982,0.10711512,94226.0,94219.0,0.095521]
[1732112406983,0.10613,94224.0,94219.0,0.095521]
[1732112407186,0.10613,94224.0,94217.0,0.095523]
[1732112407187,0.106131,94223.0,94217.0,0.095523]
[1732112407389,0.10711512,94223.0,94203.0,0.095538]
[1732112407605,0.10711512,94223.0,94216.0,0.095524]
[1732112407819,0.1,94239.0,94203.0,0.12209362]
[1732112408023,0.04293111,94225.0,94204.0,0.00106125]
[1732112408230,0.1,94234.0,94205.0,0.10711512]
[1732112408442,0.212242,94232.0,94200.0,0.0791]
[1732112408655,0.10711512,94233.0,94225.0,0.095515]
[1732112408863,0.10711512,94233.0,94200.0,0.0791]
[1732112409084,0.1,94224.0,94219.0,0.095521]
[1732112409300,0.1,94224.0,94200.0,0.0791]
[1732112409301,0.10711512,94223.0,94201.0,0.0010614]
[1732112409529,0.01,94217.0,94189.0,0.02968888]
[1732112409844,0.212381,94171.0,94160.0,0.01]
[1732112410001,0.01,94172.0,94157.0,0.095584]
[1732112410227,0.01,94172.0,94148.0,0.042437]
[1732112410420,0.1257,94171.0,94166.0,0.095575]
[1732112410626,0.1257,94171.0,94155.0,0.095586]
[1732112410627,0.01,94172.0,94169.0,0.095572]
[1732112410840,0.01,94172.0,94171.0,0.09557]
[1732112411074,0.11711512,94172.0,94166.0,0.095574]
[1732112411282,0.11711512,94172.0,94129.0,0.001712]
[1732112411283,0.01,94166.0,94129.0,0.001712]
[1732112411494,0.11711512,94166.0,94156.0,0.095585]
[1732112411697,0.11711512,94166.0,94144.0,0.00106206]
[1732112411917,0.11711512,94166.0,94159.0,0.095582]
[1732112412128,0.01,94166.0,94157.0,0.095584]
[1732112412351,0.16475363,94172.0,94144.0,0.00106207]
[1732112412352,0.05372141,94172.0,94171.0,0.09557]
[1732112412559,0.16083653,94172.0,94162.0,0.095579]
[1732112412782,0.04372141,94172.0,94171.0,0.09557]
[1732112412986,0.09463354,94188.0,94171.0,0.09557]
[1732112412987,0.01,94194.0,94184.0,0.095557]
[1732112413196,0.0785,94197.0,94169.0,0.095572]
[1732112413401,0.01106151,94197.0,94196.0,0.095545]
[1732112413609,0.05414355,94197.0,94196.0,0.095545]
[1732112413900,0.01,94197.0,94196.0,0.095545]
[1732112414357,0.01106151,94201.0,94200.0,0.106157]
[1732112414619,0.11,94201.0,94200.0,0.106157]
[1732112414832,0.1,94201.0,94200.0,0.106157]
[1732112415722,0.1,94201.0,94200.0,0.106156]
[1732112415941,0.20100361,94212.0,94165.0,0.2701361]
[1732112415942,0.01,94212.0,94180.0,0.11]
[1732112416182,0.01,94212.0,94211.0,0.106144]
[1732112418553,0.05833294,94219.0,94203.0,0.106153]
[1732112418732,0.10711512,94218.0,94216.0,0.106138]
[1732112418932,0.10711512,94218.0,94217.0,0.106137]
[1732112419136,0.10711512,94218.0,94216.0,0.106138]
[1732112419350,0.05833294,94219.0,94193.0,0.18474342]
[1732112419351,0.04327143,94219.0,94193.0,0.18474342]
[1732112419501,0.18474342,94211.0,94185.0,0.10711512]
[1732112419701,0.10711512,94210.0,94209.0,0.106146]
[1732112419925,0.10711512,94210.0,94171.0,0.02]
[1732112420126,0.10711512,94210.0,94173.0,0.1]
[1732112420337,0.10711512,94210.0,94202.0,0.106154]
[1732112420538,0.10711512,94210.0,94174.0,0.10711512]
[1732112420539,0.10711512,94210.0,94196.0,0.10616]
[1732112420779,0.0804,94209.0,94191.0,0.106166]
[1732112421083,0.18474342,94203.0,94193.0,0.106164]
[1732112421287,0.10711512,94202.0,94193.0,0.106164]
[1732112421604,0.10711512,94202.0,94190.0,0.106167]
[1732112421605,0.10711512,94202.0,94159.0,0.01]
[1732112421815,0.1,94207.0,94170.0,0.01]
[1732112422029,0.10711512,94207.0,94176.0,0.106184]
[1732112422222,0.10711512,94207.0,94204.0,0.106152]
[1732112422524,0.10711512,94207.0,94206.0,0.10615]
[1732112422703,0.0804,94209.0,94206.0,0.10615]
[1732112422704,0.0804,94209.0,94208.0,0.106148]
[1732112422906,0.04307767,94211.0,94210.0,0.106145]
[1732112423103,0.20100361,94219.0,94217.0,0.106137]
[1732112423307,0.10711512,94218.0,94217.0,0.10597398]
[1732112423510,0.0008569,94228.0,94205.0,0.10615]
[1732112423714,0.0008569,94228.0,94227.0,0.106126]
[1732112424384,0.0008569,94228.0,94227.0,0.10676261]
[1732112424692,0.0008569,94228.0,94227.0,0.106126]
[1732112426905,0.0008569,94228.0,94220.0,0.106133]
[1732112426906,0.1462,94227.0,94220.0,0.09552]
[1732112427108,0.0462,94227.0,94226.0,0.095515]
[1732112427254,0.0462,94227.0,94223.0,0.095517]
[1732112427255,0.0008569,94228.0,94227.0,0.095514]
[1732112427452,0.04488262,94228.0,94227.0,0.095514]
[1732112427673,0.0008569,94228.0,94227.0,0.095514]
[1732112427875,0.0008569,94228.0,94223.0,0.095517]
[1732112428367,0.0008569,94228.0,94200.0,0.00106133]
[1732112428581,0.0008569,94228.0,94227.0,0.095514]
[1732112429079,0.0008569,94228.0,94223.0,0.095517]
[1732112429842,0.0008569,94228.0,94224.0,0.095517]
[1732112430324,0.0008569,94228.0,94200.0,0.10711512]
[1732112430325,0.0008569,94228.0,94221.0,0.095519]
[1732112430541,0.0008569,94228.0,94227.0,0.095514]
[1732112430955,0.03483095,94231.0,94227.0,0.095414]
[1732112431178,0.1,94239.0,94228.0,0.095512]
[1732112431179,0.10711512,94230.0,94228.0,0.095512]
[1732112431412,0.10711512,94230.0,94187.0,0.01]
[1732112431413,0.1,94211.0,94170.0,0.01]
[1732112431623,0.1,94207.0,94172.0,0.04344658]
[1732112431836,0.18474342,94226.0,94213.0,0.095527]
[1732112432046,0.18474342,94226.0,94216.0,0.095524]
[1732112432047,0.10711512,94220.0,94216.0,0.095524]
[1732112432458,0.10711512,94220.0,94214.0,0.00998742]
[1732112432683,0.09440087,94236.0,94190.0,0.095551]
[1732112432684,0.0818,94229.0,94217.0,0.00044856]
[1732112432881,0.20186051,94243.0,94198.0,0.01]
[1732112432882,0.04311512,94230.0,94229.0,0.095511]
[1732112433100,0.04311512,94230.0,94210.0,0.095531]
[1732112433224,0.0753,94240.0,94230.0,0.09551]
[1732112433432,0.06211512,94239.0,94230.0,0.09551]
[1732112433634,0.06211512,94239.0,94229.0,0.00598896]
[1732112433833,0.0753,94240.0,94236.0,0.095504]
[1732112434064,0.0753,94240.0,94237.0,0.00993899]
[1732112434630,0.0008569,94243.0,94240.0,0.0955]
[1732112434839,0.0008569,94243.0,94242.0,0.095498]
[1732112435044,0.0008569,94243.0,94241.0,0.00040261]
[1732112435045,0.04317136,94243.0,94241.0,0.00596256]
[1732112435284,0.10711512,94242.0,94241.0,0.00596256]
[1732112435514,0.21322412,94242.0,94241.0,0.00596256]
[1732112435702,0.1289,94220.0,94181.0,0.01]
[1732112435933,0.1289,94220.0,94207.0,0.095533]
[1732112436124,0.10711512,94219.0,94184.0,0.0768]
[1732112436352,0.10711512,94219.0,94209.0,0.095532]
[1732112436559,0.20100361,94231.0,94198.0,0.095543]
[1732112436742,0.30811873,94231.0,94219.0,0.095521]
[1732112436949,0.21323812,94230.0,94200.0,0.095541]
[1732112437151,0.10711512,94230.0,94220.0,0.10297587]
[1732112437311,0.106128,94226.0,94213.0,0.095528]
[1732112437517,0.10711512,94225.0,94221.0,0.0099399]
[1732112437739,0.10711512,94225.0,94218.0,0.095522]
[1732112438000,0.10711512,94225.0,94222.0,0.00993611]
[1732112438149,0.001714,94220.0,94179.0,0.0473]
[1732112438354,0.001714,94220.0,94219.0,0.095522]
[1732112438557,0.001714,94220.0,94219.0,0.09658331]
[1732112439349,0.001714,94220.0,94219.0,0.20263712]
[1732112439535,0.001714,94220.0,94219.0,0.20304197]
[1732112439955,0.001714,94220.0,94219.0,0.20410305]
[1732112440201,0.0008569,94243.0,94240.0,0.0955]
[1732112440593,0.0008569,94243.0,94240.0,0.09693]
[1732112441386,0.0008569,94243.0,94240.0,0.20404512]
[1732112442409,0.0008569,94243.0,94240.0,0.20298412]
[1732112442813,0.0008569,94243.0,94240.0,0.2040278]
[1732112443795,0.0008569,94243.0,94240.0,0.21248351]
[1732112445013,0.0008569,94243.0,94240.0,0.21238351]
[1732112445450,0.18601,94241.0,94240.0,0.00986839]
[1732112445662,0.0799,94241.0,94240.0,0.00986839]
[1732112445863,0.0799,94241.0,94240.0,0.00736687]
[1732112446198,0.212226,94239.0,94219.0,0.095521]
[1732112446409,0.212226,94239.0,94198.0,0.095543]
[1732112446410,0.212251,94228.0,94198.0,0.095543]
[1732112446612,0.10711512,94227.0,94190.0,0.095551]
[1732112446815,0.10711512,94227.0,94190.0,0.01]
[1732112447019,0.1,94231.0,94199.0,0.191084]
[1732112447225,0.1,94231.0,94193.0,0.01]
[1732112447226,0.20711512,94231.0,94223.0,0.095517]
[1732112447428,0.20711512,94231.0,94219.0,0.095521]
[1732112447651,0.212254,94227.0,94198.0,0.095543]
[1732112447890,0.1,94229.0,94179.0,0.28474342]
[1732112447891,0.106143,94213.0,94203.0,0.095537]
[1732112448294,0.212262,94223.0,94197.0,0.097258]
[1732112448511,0.212282,94215.0,94202.0,0.095538]
[1732112448699,0.1,94221.0,94197.0,0.097258]
[1732112448700,0.23301512,94214.0,94197.0,0.001714]
[1732112449127,0.106151,94206.0,94197.0,0.001714]
[1732112449316,0.106149,94207.0,94197.0,0.001714]
[1732112449523,0.1,94206.0,94197.0,0.097257]
[1732112449732,0.1,94206.0,94202.0,0.000857]
[1732112450522,0.1,94213.0,94206.0,0.095535]
[1732112450721,0.04266271,94214.0,94213.0,0.095528]
[1732112450924,0.1,94218.0,94215.0,0.095525]
[1732112451100,0.20100361,94219.0,94202.0,0.000857]
[1732112451296,0.20100361,94219.0,94218.0,0.095523]
[1732112451521,0.0752,94227.0,94223.0,0.095517]
[1732112451925,0.0752,94227.0,94202.0,0.000857]
[1732112451926,0.0752,94227.0,94220.0,0.095521]
[1732112452129,0.0752,94227.0,94222.0,0.095518]
[1732112452382,0.0752,94227.0,94202.0,0.000857]
[1732112452383,0.212257,94225.0,94202.0,0.000857]
[1732112452504,0.10711512,94224.0,94214.0,0.095527]
[1732112452700,0.21324512,94224.0,94214.0,0.095527]
[1732112452919,0.10711512,94224.0,94215.0,0.095526]
[1732112453350,0.10711512,94224.0,94216.0,0.095524]
[1732112453545,0.10711512,94224.0,94202.0,0.000857]
[1732112453546,0.10711512,94224.0,94208.0,0.095532]
[1732112453745,0.10711512,94224.0,94215.0,0.095526]
[1732112453945,0.10711512,94224.0,94208.0,0.095532]
[1732112454179,0.10711512,94224.0,94216.0,0.095524]
[1732112454694,0.10711512,94224.0,94208.0,0.095532]
[1732112454901,0.0752,94227.0,94203.0,0.00106144]
[1732112455100,0.10711512,94226.0,94203.0,0.00106144]
[1732112455301,0.10711512,94226.0,94221.0,0.095519]
[1732112455527,0.0752,94227.0,94221.0,0.095519]
[1732112455875,0.0752,94227.0,94224.0,0.095516]
[1732112456483,0.0752,94227.0,94226.0,0.095515]
[1732112457772,0.0752,94227.0,94224.0,0.095516]
[1732112457984,0.10711512,94226.0,94202.0,0.000857]
[1732112458203,0.106145,94210.0,94202.0,0.000857]
[1732112458410,0.10711512,94209.0,94202.0,0.000857]
[1732112458611,0.21326212,94209.0,94202.0,0.000857]
[1732112458815,0.0461,94211.0,94202.0,0.000857]
[1732112459018,0.0461,94211.0,94210.0,0.095531]
[1732112459266,0.0461,94211.0,94207.0,0.095533]
[1732112459476,0.0943181,94222.0,94209.0,0.095532]
[1732112459684,0.10711512,94221.0,94217.0,0.095523]
[1732112459884,0.0472,94226.0,94202.0,0.000857]
[1732112459885,0.04333325,94225.0,94202.0,0.000857]
[1732112460114,0.0472,94226.0,94224.0,0.095516]
[1732112460356,0.0752,94227.0,94226.0,0.095515]
[1732112460650,0.23579526,94238.0,94224.0,0.095516]
[1732112460651,0.106119,94234.0,94224.0,0.095516]
[1732112460896,0.20143322,94233.0,94225.0,0.095515]
[1732112461119,0.10711512,94233.0,94228.0,0.095512]
[1732112461344,0.0943181,94232.0,94224.0,0.095516]
[1732112461571,0.20143322,94232.0,94216.0,0.095524]
[1732112461804,0.20143322,94232.0,94203.0,0.20265312]
[1732112461805,0.106123,94230.0,94220.0,0.09552]
[1732112462069,0.10711512,94232.0,94220.0,0.09552]
[1732112462293,0.21323612,94232.0,94222.0,0.095518]
[1732112462520,0.21323612,94232.0,94220.0,0.09552]
[1732112463014,0.106138,94217.0,94194.0,0.095546]
[1732112463235,0.106144,94212.0,94201.0,0.095539]
[1732112463470,0.15461512,94216.0,94182.0,0.1]
[1732112463471,0.0475,94216.0,94196.0,0.00106157]
[1732112463709,0.0475,94216.0,94193.0,0.095547]
[1732112463710,0.10711512,94215.0,94202.0,0.096395]
[1732112463951,0.106151,94205.0,94203.0,0.0008567]
[1732112464178,0.10711512,94205.0,94203.0,0.0008567]
[1732112464426,0.012,94220.0,94203.0,0.0008567]
[1732112464427,0.29636712,94204.0,94203.0,0.0008567]
[1732112464668,0.41936712,94204.0,94203.0,0.0008567]
[1732112464896,0.54336133,94204.0,94203.0,0.0008567]
[1732112465176,1.01081988,94204.0,94203.0,0.0008567]
[1732112465410,1.01081988,94204.0,94166.0,0.095575]
[1732112465411,0.10618,94180.0,94165.0,0.0964335]
[1732112465633,0.01,94200.0,94165.0,0.0964335]
[1732112465634,0.106181,94178.0,94165.0,0.0964335]
[1732112465852,0.18571512,94179.0,94165.0,0.0964335]
[1732112465853,0.10711512,94177.0,94169.0,0.095572]
[1732112466074,0.10711512,94177.0,94173.0,0.095568]
[1732112466293,0.106185,94175.0,94165.0,0.0964335]
[1732112466538,0.106195,94166.0,94165.0,0.0008575]
[1732112466753,0.10711512,94166.0,94165.0,0.0008575]
[1732112467005,0.10677215,94166.0,94165.0,0.0008575]
[1732112467223,0.0425234,94177.0,94165.0,0.0008575]
[1732112467438,0.39711842,94173.0,94165.0,0.0008575]
[1732112467651,0.10711512,94172.0,94165.0,0.0008575]
[1732112468069,0.106195,94166.0,94165.0,0.0008575]
[1732112468332,0.43105354,94166.0,94165.0,0.0008575]
[1732112468769,0.10711512,94166.0,94165.0,0.0008575]
[1732112468987,0.01961507,94170.0,94165.0,0.0008575]
[1732112469203,0.21330712,94169.0,94165.0,0.0008575]
[1732112469407,0.10711512,94169.0,94165.0,0.0008575]
[1732112469878,0.106195,94166.0,94165.0,0.0008575]
[1732112470105,0.24631012,94166.0,94165.0,0.0008575]
[1732112470324,0.54731373,94166.0,94165.0,0.0008575]
[1732112470807,0.56691387,94166.0,94165.0,0.0008575]
[1732112471774,0.64651387,94166.0,94165.0,0.0008575]
[1732112472033,0.61351387,94166.0,94165.0,0.0008575]
[1732112472283,0.49391373,94166.0,94165.0,0.0008575]
[1732112473271,0.53745121,94166.0,94165.0,0.0008575]
[1732112473739,0.32414109,94166.0,94165.0,0.0008575]
[1732112473966,0.01961507,94170.0,94165.0,0.0008575]
[1732112474227,0.10711512,94169.0,94165.0,0.0008575]
[1732112475181,0.10621,94153.0,94152.0,0.0008576]
[1732112475408,0.29342512,94153.0,94152.0,0.0008576]
[1732112475667,0.18721512,94153.0,94152.0,0.0008576]
[1732112475945,0.20100361,94163.0,94152.0,0.0008576]
[1732112476221,0.01961507,94170.0,94152.0,0.0008576]
[1732112476408,0.01961507,94170.0,94158.0,0.095583]
[1732112476409,0.25702983,94169.0,94158.0,0.095583]
[1732112476629,0.25702983,94169.0,94152.0,0.0008576]
[1732112476630,0.21330712,94169.0,94159.0,0.095582]
[1732112476883,0.10711512,94169.0,94159.0,0.095582]
[1732112477112,0.10711512,94169.0,94153.0,0.095589]
[1732112477356,0.10711512,94169.0,94152.0,0.0008576]
[1732112477583,0.10711512,94169.0,94165.0,0.0008566]
[1732112478027,0.106193,94168.0,94165.0,0.0008566]
[1732112478265,0.106195,94166.0,94165.0,0.0008566]
[1732112478511,0.10711512,94166.0,94165.0,0.0008566]
[1732112478749,0.21331012,94166.0,94165.0,0.0008566]
[1732112478999,0.23631012,94166.0,94165.0,0.0008566]
[1732112479934,0.10621,94153.0,94152.0,0.0008576]
[1732112480182,0.23632512,94153.0,94152.0,0.0008576]
[1732112480431,0.23632512,94153.0,94127.0,0.0964718]
[1732112480432,0.106225,94140.0,94127.0,0.0964718]
[1732112480679,0.10711512,94139.0,94127.0,0.0964718]
[1732112480947,0.10711512,94139.0,94131.0,0.09561]
[1732112481170,0.10711512,94139.0,94129.0,0.097325]
[1732112481413,0.21334012,94139.0,94129.0,0.097325]
[1732112481642,0.182427,94138.0,94129.0,0.001712]
[1732112481877,0.28954212,94138.0,94129.0,0.001712]
[1732112482616,0.18331512,94138.0,94129.0,0.001712]
[1732112482859,0.28954212,94138.0,94129.0,0.001712]
[1732112483607,0.39716563,94138.0,94129.0,0.001712]
[1732112483844,0.32254212,94138.0,94129.0,0.001712]
[1732112484059,0.31254212,94138.0,94129.0,0.001712]
[1732112484280,0.31254212,94138.0,94131.0,0.095611]
[1732112484281,0.18331512,94138.0,94131.0,0.095611]
[1732112484490,0.12037613,94138.0,94129.0,0.001712]
[1732112484705,0.12037613,94138.0,94129.0,0.097324]
[1732112485150,0.10711512,94138.0,94131.0,0.095611]
[1732112485374,0.12037597,94138.0,94129.0,0.097324]
[1732112485601,0.10611512,94138.0,94129.0,0.097324]
[1732112485829,0.10611512,94138.0,94129.0,0.001712]
[1732112485830,0.24860298,94138.0,94129.0,0.001712]
[1732112486089,0.129237,94129.0,94127.0,0.0008578]
[1732112486317,0.45061659,94129.0,94127.0,0.0008578]
[1732112486532,0.34437959,94129.0,94127.0,0.0008578]
[1732112486741,0.32137959,94129.0,94127.0,0.0008578]
[1732112487598,0.35274351,94129.0,94127.0,0.0008578]
[1732112488020,0.45898051,94129.0,94127.0,0.0008578]
[1732112488239,0.32137959,94129.0,94127.0,0.0008578]
[1732112488461,0.023,94128.0,94109.0,0.095633]
[1732112488676,0.106244,94123.0,94112.0,0.09563]
[1732112488889,0.106257,94111.0,94110.0,0.00470358]
[1732112489119,0.106257,94111.0,94107.0,0.0008564]
[1732112489120,0.10711512,94111.0,94107.0,0.0008564]
[1732112489333,0.10626,94108.0,94107.0,0.0008564]
[1732112489551,0.1203773,94108.0,94107.0,0.0008564]
[1732112489972,0.1203773,94108.0,94107.0,0.0964914]
[1732112489973,0.01326218,94108.0,94107.0,0.0964914]
[1732112490414,0.01326218,94108.0,94107.0,0.095635]
[1732112492662,0.01226218,94108.0,94107.0,0.095635]
[1732112493090,0.02,94146.0,94106.0,0.00106252]
[1732112493315,0.02,94146.0,94103.0,0.095639]
[1732112493316,0.0314385,94113.0,94103.0,0.095639]
[1732112493537,0.30811873,94141.0,94108.0,0.095634]
[1732112493538,0.10711512,94141.0,94108.0,0.095634]
[1732112493748,0.106225,94140.0,94129.0,0.095613]
[1732112493958,0.10711512,94139.0,94129.0,0.095613]
[1732112494398,0.10711512,94139.0,94104.0,0.01]
[1732112494399,0.10711512,94139.0,94105.0,0.095637]
[1732112494604,0.10711512,94139.0,94101.0,0.0572]
[1732112494605,0.212458,94136.0,94101.0,0.0572]
[1732112494814,0.10711512,94135.0,94118.0,0.095624]
[1732112495040,0.10711512,94135.0,94122.0,0.095619]
[1732112495252,0.106235,94131.0,94118.0,0.095624]
[1732112495468,0.21335112,94130.0,94120.0,0.095622]
[1732112495680,0.10711512,94130.0,94120.0,0.095622]
[1732112495902,0.10711512,94130.0,94103.0,0.01]
[1732112495903,0.10711512,94130.0,94099.0,0.01]
[1732112496118,0.10711512,94130.0,94120.0,0.095622]
[1732112496347,0.21044211,94138.0,94103.0,0.01]
[1732112496348,0.18744211,94138.0,94123.0,0.095618]
[1732112496573,0.10711512,94137.0,94125.0,0.095616]
[1732112496785,0.212461,94135.0,94120.0,0.095622]
[1732112496993,0.212461,94135.0,94101.0,0.0572]
[1732112496994,0.106236,94130.0,94118.0,0.095624]
[1732112497212,0.212461,94135.0,94095.0,0.095647]
[1732112497213,0.023,94128.0,94095.0,0.095647]
[1732112497450,0.29455723,94127.0,94096.0,0.10711512]
[1732112497659,0.18744211,94127.0,94125.0,0.095617]
[1732112497869,0.212451,94139.0,94121.0,0.09562]
[1732112498079,0.10711512,94138.0,94125.0,0.095616]
[1732112498285,0.10711512,94136.0,94116.0,0.095626]
[1732112498499,0.10711512,94136.0,94100.0,0.19474342]
[1732112498500,0.10711512,94136.0,94124.0,0.095618]
[1732112498756,0.106231,94135.0,94125.0,0.095617]
[1732112498969,0.106233,94133.0,94118.0,0.095624]
[1732112499197,0.023,94137.0,94125.0,0.095617]
[1732112499198,0.10711512,94132.0,94125.0,0.095617]
[1732112499409,0.10711512,94132.0,94101.0,0.10711512]
[1732112499618,0.212474,94129.0,94102.0,0.09564]
[1732112499824,0.03153866,94106.0,94105.0,0.095637]
[1732112500460,0.10711512,94128.0,94103.0,0.00106258]
[1732112500679,0.01326134,94127.0,94121.0,0.095621]
[1732112500916,0.01326134,94126.0,94125.0,0.095617]
[1732112501359,0.01326134,94126.0,94104.0,0.20275312]
[1732112501573,0.10711512,94137.0,94131.0,0.095611]
[1732112501800,0.01326133,94125.0,94124.0,0.095618]
[1732112502013,0.09303926,94137.0,94133.0,0.095608]
[1732112502232,0.01326126,94136.0,94124.0,0.095618]
[1732112502444,0.04306967,94138.0,94135.0,0.095607]
[1732112502673,0.106234,94132.0,94122.0,0.09562]
[1732112502918,0.01326095,94131.0,94122.0,0.09562]
[1732112503147,0.106241,94125.0,94121.0,0.0008572]
[1732112503380,0.01326095,94124.0,94121.0,0.0008572]
[1732112503585,0.01326095,94123.0,94121.0,0.0008572]
[1732112503796,0.01326095,94122.0,94121.0,0.0008572]
[1732112505100,0.12037607,94122.0,94121.0,0.0008572]
[1732112505572,0.01326095,94122.0,94121.0,0.0008572]
[1732112506674,0.05690233,94122.0,94121.0,0.0008572]
[1732112506903,0.01326095,94122.0,94121.0,0.0008572]
[1732112507362,0.11950595,94122.0,94121.0,0.0008572]
[1732112507575,0.25711512,94122.0,94121.0,0.0008572]
[1732112507789,0.29196012,94122.0,94121.0,0.0008572]
[1732112508484,0.388008,94122.0,94121.0,0.0008572]
[1732112508699,0.24696012,94122.0,94121.0,0.0008572]
[1732112509338,0.5003067,94122.0,94121.0,0.0008572]
[1732112509555,0.73482341,94122.0,94121.0,0.0008572]
[1732112509786,0.84836119,94122.0,94121.0,0.0008572]
[1732112510463,0.106263,94107.0,94100.0,0.095642]
[1732112510678,0.0316492,94102.0,94097.0,0.095645]
[1732112511115,0.0316492,94102.0,94099.0,0.095643]
[1732112511335,0.0316492,94105.0,94101.0,0.095641]
[1732112511594,0.12621699,94111.0,94077.0,0.01]
[1732112511820,0.04366041,94113.0,94075.0,0.1210068]
[1732112511821,0.0316492,94108.0,94107.0,0.095635]
[1732112512049,0.0316492,94111.0,94108.0,0.095634]
[1732112512263,0.10711512,94110.0,94078.0,0.20278012]
[1732112512483,0.0316492,94111.0,94103.0,0.095639]
[1732112512484,0.09456779,94111.0,94103.0,0.095639]
[1732112512710,0.1379042,94113.0,94095.0,0.01]
[1732112512711,0.12621699,94113.0,94095.0,0.01]
[1732112512896,0.0316492,94113.0,94112.0,0.09563]
[1732112513145,0.12621699,94121.0,94119.0,0.095623]
[1732112513358,0.09456779,94128.0,94124.0,0.095618]
[1732112513567,0.09456779,94129.0,94127.0,0.095615]
[1732112513779,0.09456779,94130.0,94129.0,0.095613]
[1732112514000,0.13948905,94130.0,94129.0,0.095613]
[1732112514217,0.01326078,94130.0,94129.0,0.095613]
[1732112514454,0.03166048,94140.0,94139.0,0.095603]
[1732112514693,0.03166048,94152.0,94145.0,0.095596]
[1732112514906,0.09466939,94153.0,94145.0,0.095596]
[1732112514907,0.12632987,94153.0,94152.0,0.09559]
[1732112515386,0.14200409,94156.0,94151.0,0.095591]
[1732112515387,0.09466939,94156.0,94151.0,0.095591]
[1732112515621,0.18512575,94159.0,94140.0,0.095601]
[1732112515622,0.01325703,94153.0,94152.0,0.09559]
[1732112516058,0.10622,94144.0,94115.0,0.095627]
[1732112516275,0.10794878,94143.0,94137.0,0.095604]
[1732112516489,0.09469175,94147.0,94136.0,0.095606]
[1732112516750,0.09469175,94145.0,94136.0,0.095606]
[1732112516962,0.09469175,94145.0,94138.0,0.095604]
[1732112517181,0.106219,94145.0,94138.0,0.095604]
[1732112517641,0.04489025,94144.0,94138.0,0.095604]
[1732112517847,0.01325868,94143.0,94138.0,0.095604]
[1732112518088,0.01325868,94143.0,94129.0,0.095612]
[1732112518089,0.106227,94138.0,94129.0,0.095612]
[1732112518306,0.20180687,94147.0,94109.0,0.1344]
[1732112518307,0.21244,94144.0,94113.0,0.01]
[1732112518543,0.106226,94139.0,94131.0,0.095611]
[1732112518759,0.03162198,94137.0,94131.0,0.09561]
[1732112518975,0.04488084,94136.0,94132.0,0.095609]
[1732112519190,0.01325886,94135.0,94130.0,0.095611]
[1732112519400,0.01325886,94134.0,94132.0,0.095609]
[1732112519604,0.01325886,94133.0,94129.0,0.095612]
[1732112519821,0.01325886,94132.0,94125.0,0.095616]
[1732112520033,0.01325886,94131.0,94130.0,0.095612]
[1732112520700,0.12037398,94131.0,94098.0,0.0792]
[1732112520710,0.15199596,94131.0,94107.0,0.0964927]
[1732112520914,0.106242,94124.0,94116.0,0.095626]
[1732112521139,0.13786272,94124.0,94116.0,0.095626]
[1732112521368,0.01326195,94123.0,94107.0,0.0008577]
[1732112521577,0.01326195,94122.0,94117.0,0.095624]
[1732112521785,0.01326195,94121.0,94118.0,0.095624]
[1732112522006,0.2326236,94128.0,94120.0,0.095622]
[1732112522220,0.01326184,94127.0,94122.0,0.09562]
[1732112522456,0.01326184,94127.0,94107.0,0.0008577]
[1732112522457,0.03162072,94132.0,94129.0,0.095612]
[1732112522668,0.01326148,94131.0,94130.0,0.095612]
[1732112523346,0.03162072,94141.0,94140.0,0.095602]
[1732112523558,0.14214732,94157.0,94149.0,0.095593]
[1732112523787,0.24835232,94158.0,94149.0,0.095592]
[1732112524001,0.10954599,94155.0,94149.0,0.095592]
[1732112524217,0.10954599,94155.0,94145.0,0.095597]
[1732112524476,0.1,94153.0,94122.0,0.01]
[1732112524693,0.1,94153.0,94118.0,0.0476]
[1732112524694,0.1,94153.0,94149.0,0.095592]
[1732112524942,0.04314599,94155.0,94140.0,0.00106213]
[1732112525169,0.04314599,94155.0,94130.0,0.01]
[1732112525170,0.01326007,94154.0,94152.0,0.095589]
[1732112525405,0.18952976,94164.0,94152.0,0.095589]
[1732112525406,0.01326007,94160.0,94152.0,0.095589]
[1732112525613,0.24926244,94164.0,94154.0,0.095587]
[1732112525819,0.24926244,94164.0,94153.0,0.095589]
[1732112525820,0.106201,94161.0,94151.0,0.09559]
[1732112526032,0.0017148,94153.0,94125.0,0.01]
[1732112526488,0.0017148,94153.0,94143.0,0.095598]
[1732112526710,0.0017148,94153.0,94144.0,0.095597]
[1732112526916,0.1079248,94153.0,94143.0,0.095599]
[1732112527128,0.1079248,94153.0,94126.0,0.10711512]
[1732112527129,0.0017148,94153.0,94145.0,0.095596]
[1732112527356,0.0017148,94153.0,94151.0,0.09559]
[1732112527573,0.0017148,94153.0,94147.0,0.095595]
[1732112527783,0.0017148,94153.0,94150.0,0.095591]
[1732112527991,0.0017148,94153.0,94148.0,0.191187]
[1732112528259,0.0017148,94153.0,94148.0,0.095593]
[1732112528469,0.04510204,94153.0,94148.0,0.095593]
[1732112528685,0.0017148,94153.0,94127.0,0.095615]